bitfinex-derivatives/quotes_BTCF0:USTF0_20241110
["timestamp","ask_amount","ask_price","bid_price","bid_amount"]
[1731229678042,0.19319721,79215.0,79214.0,9.533e-05]
[1731229678948,0.19319721,79215.0,79214.0,5.533e-05]
[1731229680349,0.19207721,79215.0,79214.0,5.533e-05]
[1731229681345,0.29056621,79215.0,79205.0,0.02035094]
[1731229681549,0.08033721,79206.0,79205.0,0.02035094]
[1731229681747,0.12591188,79206.0,79205.0,0.02035094]
[1731229682553,0.08033721,79206.0,79205.0,0.02035094]
[1731229682746,0.12552256,79206.0,79205.0,0.02035094]
[1731229683046,0.08033721,79211.0,79205.0,0.02035094]
[1731229683246,0.04526139,79210.0,79205.0,0.02035094]
[1731229683449,0.04526139,79209.0,79205.0,0.02035094]
[1731229683752,0.04526139,79208.0,79205.0,0.02035094]
[1731229683948,0.04526139,79207.0,79205.0,0.02035094]
[1731229684170,0.08033721,79211.0,79205.0,0.02035094]
[1731229684340,0.04526068,79210.0,79205.0,0.02035094]
[1731229684545,0.04526068,79209.0,79205.0,0.02035094]
[1731229684744,0.08033721,79211.0,79205.0,0.02035094]
[1731229684946,0.04521356,79210.0,79205.0,0.10068815]
[1731229685142,0.08033721,79211.0,79205.0,0.10068815]
[1731229685341,0.04523497,79210.0,79205.0,0.10068815]
[1731229685549,0.08033721,79211.0,79205.0,0.10068815]
[1731229688348,0.08033721,79211.0,79206.0,0.04996508]
[1731229688548,0.08033721,79211.0,79207.0,0.04996508]
[1731229688749,0.08033721,79211.0,79206.0,0.04996508]
[1731229688949,0.01327,79210.0,79206.0,0.04996508]
[1731229690652,0.01327,79210.0,79209.0,0.08033721]
[1731229690951,0.01009,79210.0,79209.0,0.13030229]
[1731229691148,0.01009,79210.0,79209.0,0.08033721]
[1731229691349,0.01009,79210.0,79209.0,0.13057856]
[1731229692858,0.01009,79210.0,79209.0,0.10074066]
[1731229693262,0.01009,79210.0,79209.0,0.18107787]
[1731229693458,0.01009,79210.0,79209.0,0.13083652]
[1731229696561,0.01221,79210.0,79209.0,0.13083652]
[1731229699462,0.3608,79221.0,79209.0,0.13083652]
[1731229699658,0.3608,79221.0,79213.0,0.08033721]
[1731229699865,0.09952,79225.0,79216.0,0.3608]
[1731229700061,0.09952,79225.0,79220.0,0.08033721]
[1731229701066,0.04593308,79224.0,79220.0,0.08033721]
[1731229701267,0.09952,79225.0,79220.0,0.08033721]
[1731229702466,0.17985721,79225.0,79216.0,0.44113721]
[1731229702767,0.06403148,79229.0,79218.0,0.08033721]
[1731229702964,0.08033721,79227.0,79218.0,0.08033721]
[1731229703467,0.3608,79239.0,79226.0,0.08033721]
[1731229703666,0.3608,79239.0,79235.0,0.08033721]
[1731229704065,0.3608,79239.0,79235.0,0.45893721]
[1731229706264,0.00189385,79241.0,79235.0,0.52273973]
[1731229706471,8.5e-07,79241.0,79240.0,0.44113721]
[1731229707368,8.7e-07,79241.0,79240.0,0.44113721]
[1731229708067,8.7e-07,79242.0,79240.0,0.44113721]
[1731229708672,8.7e-07,79242.0,79241.0,0.08033721]
[1731229709171,7.8e-07,79242.0,79241.0,0.08033721]
[1731229710773,7.8e-07,79242.0,79240.0,0.3608]
[1731229710969,7.8e-07,79242.0,79241.0,0.08033721]
[1731229711469,7.8e-07,79242.0,79241.0,0.13081612]
[1731229712465,7.8e-07,79242.0,79241.0,0.05047891]
[1731229712873,0.06200078,79242.0,79241.0,0.05047891]
[1731229713268,0.09290078,79242.0,79241.0,0.01462737]
[1731229722480,0.10299078,79242.0,79241.0,0.01462737]
[1731229723176,0.14856105,79242.0,79241.0,0.01462737]
[1731229723882,0.10299078,79242.0,79241.0,0.01462737]
[1731229728579,0.11308078,79242.0,79241.0,0.01462737]
[1731229728876,0.47388078,79242.0,79241.0,0.01462737]
[1731229729381,0.11308078,79242.0,79241.0,0.01462737]
[1731229734204,0.15849918,79242.0,79241.0,0.01462737]
[1731229735506,0.211399,79242.0,79241.0,0.01462737]
[1731229737776,0.11308078,79242.0,79241.0,0.01462737]
[1731229737979,0.21141827,79242.0,79241.0,0.01462737]
[1731229740280,0.18051827,79242.0,79241.0,0.01462737]
[1731229740479,0.12768534,79242.0,79241.0,0.01462737]
[1731229742080,0.08218078,79242.0,79241.0,0.01462737]
[1731229743089,0.02018078,79242.0,79241.0,0.01462737]
[1731229744286,0.02018078,79242.0,79241.0,0.39322737]
[1731229747190,0.02018078,79242.0,79241.0,0.75402737]
[1731229749299,0.02018078,79242.0,79241.0,0.37542737]
[1731229751297,7.8e-07,79242.0,79241.0,0.75402737]
[1731229751493,0.3608,79261.0,79241.0,0.75402737]
[1731229751494,0.08033596,79260.0,79241.0,0.75402737]
[1731229751704,0.27982588,79259.0,79249.0,0.3608]
[1731229751996,0.08033721,79255.0,79249.0,0.3608]
[1731229752296,0.06111791,79254.0,79249.0,0.3608]
[1731229752499,0.0609977,79253.0,79249.0,0.3608]
[1731229752696,0.08033721,79251.0,79249.0,0.3608]
[1731229754392,0.00012021,79254.0,79249.0,0.3608]
[1731229754596,0.00012021,79254.0,79249.0,0.45689629]
[1731229754791,0.00012021,79254.0,79253.0,0.08033721]
[1731229755703,0.00012021,79254.0,79250.0,0.0621]
[1731229756000,0.00012021,79254.0,79253.0,0.08033721]
[1731229760599,2.1e-07,79254.0,79253.0,0.45885721]
[1731229761200,2.1e-07,79254.0,79253.0,0.75885721]
[1731229761501,0.00189315,79270.0,79253.0,0.75885721]
[1731229761708,0.00189315,79270.0,79269.0,0.3608]
[1731229762605,0.00189315,79270.0,79267.0,0.08033721]
[1731229762606,0.0001138,79270.0,79267.0,0.08033721]
[1731229762992,0.0001138,79270.0,79267.0,0.44113721]
[1731229764696,0.01009,79269.0,79267.0,0.44113721]
[1731229765202,0.01009,79269.0,79267.0,0.50576624]
[1731229766700,0.01009,79269.0,79268.0,0.37848]
[1731229766996,0.01009,79269.0,79267.0,0.50740624]
[1731229767304,0.01009,79269.0,79267.0,0.50576624]
[1731229768401,0.0001138,79270.0,79267.0,0.50576624]
[1731229768706,8e-07,79270.0,79267.0,0.88424624]
[1731229769110,0.00189225,79294.0,79269.0,0.08033721]
[1731229769304,0.00189225,79294.0,79288.0,0.08033721]
[1731229770195,9.998e-05,79290.0,79288.0,0.08033721]
[1731229772400,9.998e-05,79290.0,79288.0,0.2423991]
[1731229772810,9.998e-05,79290.0,79288.0,0.6207591]
[1731229773309,9.998e-05,79290.0,79288.0,0.2423991]
[1731229773513,9.998e-05,79290.0,79288.0,0.06294189]
[1731229773706,9.998e-05,79290.0,79280.0,0.36244]
[1731229773707,9.998e-05,79290.0,79287.0,0.09912]
[1731229774214,9.998e-05,79290.0,79289.0,0.44113721]
[1731229775105,9.998e-05,79290.0,79289.0,0.3608]
[1731229776910,9.998e-05,79290.0,79289.0,0.3860348]
[1731229777106,9.998e-05,79290.0,79289.0,0.45000501]
[1731229780414,9.8e-07,79290.0,79289.0,0.54912501]
[1731229780609,9.8e-07,79290.0,79289.0,0.92748501]
[1731229781914,9.8e-07,79290.0,79289.0,1.19692292]
[1731229787517,9.8e-07,79290.0,79289.0,1.11658571]
[1731229787706,9.8e-07,79290.0,79289.0,1.19692292]
[1731229788216,9.8e-07,79290.0,79289.0,1.00778222]
[1731229788519,9.8e-07,79290.0,79289.0,0.92744501]
[1731229788820,9.8e-07,79290.0,79289.0,0.53034222]
[1731229789023,9.8e-07,79290.0,79289.0,0.62942222]
[1731229789714,9.8e-07,79290.0,79289.0,0.53034222]
[1731229789915,9.8e-07,79290.0,79289.0,0.62942222]
[1731229790333,9.8e-07,79290.0,79289.0,0.53034222]
[1731229791007,0.05576645,79290.0,79289.0,0.53034222]
[1731229792519,0.05534166,79290.0,79289.0,0.53034222]
[1731229794011,0.05534166,79290.0,79289.0,0.45000501]
[1731229794218,9.8e-07,79290.0,79289.0,0.08920501]
[1731229794413,9.8e-07,79290.0,79289.0,0.0252348]
[1731229795713,9.8e-07,79290.0,79280.0,0.41486989]
[1731229795915,9.8e-07,79290.0,79287.0,0.08033721]
[1731229797117,0.00761,79289.0,79287.0,0.08033721]
[1731229797817,0.00761,79289.0,79285.0,0.02522831]
[1731229798019,0.08033721,79287.0,79285.0,0.02522831]
[1731229798219,0.08033721,79287.0,79280.0,0.41490989]
[1731229798415,0.08033721,79287.0,79282.0,0.08033721]
[1731229799113,0.00761,79289.0,79286.0,0.08033721]
[1731229802428,0.08033721,79287.0,79282.0,0.08033721]
[1731229803317,0.08033721,79283.0,79280.0,0.41486989]
[1731229803519,0.097,79282.0,79280.0,0.41322989]
[1731229803818,0.097,79282.0,79280.0,0.3608]
[1731229804241,0.097,79282.0,79274.0,0.13032915]
[1731229804526,0.08033721,79279.0,79274.0,0.08033721]
[1731229804726,0.08033721,79279.0,79273.0,0.3608]
[1731229804922,0.08033721,79279.0,79275.0,0.08033721]
[1731229805225,0.097,79282.0,79278.0,0.08033721]
[1731229805226,0.17733721,79282.0,79278.0,0.08033721]
[1731229805620,0.097,79282.0,79281.0,0.08033721]
[1731229806022,0.097,79282.0,79273.0,0.3608]
[1731229806222,0.097,79282.0,79279.0,0.08033721]
[1731229806627,0.17733721,79282.0,79279.0,0.08033721]
[1731229807019,0.17733721,79282.0,79274.0,0.02523627]
[1731229807228,0.17733721,79282.0,79277.0,0.08033721]
[1731229807528,0.097,79282.0,79281.0,0.08033721]
[1731229808123,0.097,79282.0,79274.0,0.02523627]
[1731229808124,0.17733721,79282.0,79277.0,0.08033721]
[1731229808525,0.08033721,79278.0,79274.0,0.02523627]
[1731229808823,0.08033721,79278.0,79273.0,0.05415819]
[1731229808824,0.44113721,79278.0,79273.0,0.05415819]
[1731229809028,0.08033721,79274.0,79273.0,0.05251819]
[1731229809231,0.08033721,79274.0,79267.0,0.08033721]
[1731229810323,0.08033721,79274.0,79272.0,0.02523627]
[1731229810523,0.3608,79278.0,79272.0,0.02523627]
[1731229810722,0.08033721,79274.0,79267.0,0.08033721]
[1731229810922,0.08033721,79270.0,79267.0,0.05143614]
[1731229811122,0.44113721,79270.0,79260.0,0.08033721]
[1731229811430,0.08033721,79266.0,79260.0,0.08033721]
[1731229811627,0.08033721,79266.0,79264.0,0.08033721]
[1731229812018,0.39068376,79270.0,79264.0,0.08033721]
[1731229814432,0.31034655,79270.0,79268.0,0.08033721]
[1731229814926,0.3608,79278.0,79268.0,0.08033721]
[1731229815127,0.09908,79280.0,79264.0,0.44113721]
[1731229815128,0.3608,79288.0,79277.0,0.16067442]
[1731229815323,0.3608,79297.0,79287.0,0.08033721]
[1731229815531,0.3608,79308.0,79283.0,0.3608]
[1731229815532,0.00271085,79289.0,79288.0,0.08033721]
[1731229815729,0.3608,79305.0,79288.0,0.09908]
[1731229816028,0.08033721,79302.0,79293.0,0.44113721]
[1731229816226,0.08033721,79298.0,79293.0,0.3608]
[1731229816432,0.16067442,79296.0,79293.0,0.3608]
[1731229816728,4.66e-05,79295.0,79293.0,0.3608]
[1731229821530,4.66e-05,79295.0,79294.0,0.0315]
[1731229823027,6e-07,79295.0,79294.0,0.0315]
[1731229828448,6e-07,79295.0,79294.0,0.05673132]
[1731229830741,6e-07,79295.0,79294.0,0.17892476]
[1731229831439,6e-07,79295.0,79294.0,0.05673132]
[1731229831639,6e-07,79295.0,79294.0,0.15577132]
[1731229832242,0.3926,79313.0,79294.0,0.15577132]
[1731229832243,6e-07,79300.0,79294.0,0.27796476]
[1731229832447,6e-07,79300.0,79299.0,0.12219344]
[1731229833634,6e-07,79300.0,79299.0,0.22123344]
[1731229834041,6e-07,79300.0,79299.0,0.17253016]
[1731229834242,6e-07,79300.0,79299.0,0.27157016]
[1731229850461,6e-07,79300.0,79299.0,0.66985049]
[1731229850665,0.3608,79331.0,79299.0,1.12167378]
[1731229850851,0.3608,79331.0,79319.0,0.12219344]
[1731229851157,0.3608,79331.0,79314.0,0.48299344]
[1731229852057,0.12219344,79326.0,79314.0,0.4598]
[1731229852253,0.3608,79359.0,79325.0,0.3608]
[1731229852453,0.0307,79358.0,79340.0,0.48299344]
[1731229852658,0.3608,79351.0,79332.0,0.3608]
[1731229852956,0.12219344,79350.0,79332.0,0.3608]
[1731229853156,0.3608,79340.0,79325.0,0.02522655]
[1731229853360,0.12219344,79342.0,79325.0,0.02522655]
[1731229853361,0.0944,79339.0,79325.0,0.02522655]
[1731229853550,0.0944,79339.0,79326.0,0.12219344]
[1731229854258,0.099,79338.0,79326.0,0.12219344]
[1731229854763,0.0944,79339.0,79332.0,0.05042101]
[1731229854949,0.0944,79339.0,79332.0,0.17261445]
[1731229857059,0.1934,79339.0,79332.0,0.17261445]
[1731229857364,0.0944,79339.0,79332.0,0.22306086]
[1731229860363,0.3608,79351.0,79338.0,0.48299344]
[1731229860559,0.3608,79351.0,79350.0,0.12219344]
[1731229860759,0.3608,79351.0,79343.0,0.12219344]
[1731229860962,0.3608,79351.0,79338.0,0.3608]
[1731229861363,0.10208,79350.0,79338.0,0.3608]
[1731229861664,0.12219344,79349.0,79334.0,0.00189042]
[1731229862473,0.05732366,79348.0,79337.0,0.12219344]
[1731229862658,0.10208,79350.0,79337.0,0.12219344]
[1731229862659,0.05732366,79347.0,79337.0,0.12219344]
[1731229862864,0.10208,79350.0,79337.0,0.12219344]
[1731229862865,0.08772366,79346.0,79337.0,0.12219344]
[1731229863064,0.05732366,79345.0,79337.0,0.12219344]
[1731229863866,0.05732366,79345.0,79344.0,0.12219344]
[1731229864171,0.0304,79346.0,79344.0,0.12219344]
[1731229865262,0.0304,79346.0,79345.0,0.3608]
[1731229867168,0.3608,79351.0,79345.0,0.3608]
[1731229867367,0.05775897,79350.0,79345.0,0.3608]
[1731229867568,0.3608,79351.0,79349.0,0.12219344]
[1731229867773,0.05778711,79350.0,79349.0,0.12219344]
[1731229868274,0.3608,79351.0,79349.0,0.12219344]
[1731229870572,0.0655,79354.0,79349.0,0.12219344]
[1731229870875,0.48299344,79372.0,79349.0,0.12219344]
[1731229870876,0.3608,79372.0,79349.0,0.12219344]
[1731229871081,0.0333,79371.0,79361.0,0.12219344]
[1731229871581,0.3941,79371.0,79361.0,0.12219344]
[1731229871984,0.3941,79371.0,79362.0,0.3608]
[1731229872177,0.0302,79370.0,79362.0,0.3608]
[1731229878886,0.0302,79370.0,79356.0,0.12219344]
[1731229879480,4.34e-05,79366.0,79356.0,0.12219344]
[1731229879983,4.34e-05,79366.0,79364.0,0.02520922]
[1731229885489,4.34e-05,79366.0,79362.0,0.3608]
[1731229885888,0.12219344,79365.0,79356.0,0.05040576]
[1731229886093,0.12219344,79360.0,79356.0,0.05040576]
[1731229886293,0.0628,79359.0,79356.0,0.05040576]
[1731229887788,0.0628,79359.0,79356.0,0.00050576]
[1731229888593,0.37804,79358.0,79356.0,0.00050576]
[1731229888898,0.10204,79357.0,79338.0,0.02520922]
[1731229889104,0.12219344,79347.0,79338.0,0.02520922]
[1731229889294,0.22535344,79347.0,79334.0,0.00189042]
[1731229889598,0.22535344,79347.0,79334.0,0.12408386]
[1731229889791,0.10316,79347.0,79334.0,0.12408386]
[1731229889996,0.10316,79347.0,79340.0,0.12219344]
[1731229891288,0.12434257,79346.0,79340.0,0.12219344]
[1731229891486,0.12426821,79345.0,79340.0,0.12219344]
[1731229891695,0.0581391,79344.0,79340.0,0.12219344]
[1731229891897,0.0312,79358.0,79343.0,0.12219344]
[1731229892194,0.05842897,79357.0,79346.0,0.3608]
[1731229892398,0.05842897,79356.0,79346.0,0.3608]
[1731229892595,0.05842897,79355.0,79346.0,0.3608]
[1731229892798,0.05842897,79354.0,79343.0,0.12219344]
[1731229893100,0.05842897,79353.0,79343.0,0.12219344]
[1731229893303,0.05842897,79352.0,79343.0,0.12219344]
[1731229893495,0.05842897,79351.0,79343.0,0.12219344]
[1731229893697,0.05842897,79350.0,79341.0,0.03]
[1731229893898,0.05842897,79349.0,79341.0,0.03]
[1731229894202,0.05842897,79348.0,79341.0,0.03]
[1731229894402,0.05842897,79347.0,79341.0,0.03]
[1731229894601,0.05842897,79346.0,79340.0,0.05108447]
[1731229894809,0.84379344,79341.0,79311.0,0.00164]
[1731229895001,0.3608,79333.0,79309.0,0.05328204]
[1731229895206,0.31038471,79320.0,79309.0,0.41408204]
[1731229895403,0.05892073,79319.0,79310.0,0.0309]
[1731229895597,0.05892073,79318.0,79310.0,0.0309]
[1731229895793,0.43257815,79320.0,79310.0,0.0309]
[1731229895999,0.05691036,79319.0,79310.0,0.0309]
[1731229896199,0.43257815,79320.0,79310.0,0.0309]
[1731229896200,0.05699056,79318.0,79310.0,0.0309]
[1731229896398,0.43257815,79320.0,79310.0,0.0309]
[1731229900710,0.43257815,79320.0,79315.0,0.05057215]
[1731229902314,0.55477159,79320.0,79315.0,0.05057215]
[1731229902816,0.43257815,79320.0,79315.0,0.05057215]
[1731229906216,0.1032,79319.0,79315.0,0.05057215]
[1731229906413,0.12219344,79317.0,79315.0,0.05057215]
[1731229906718,0.1032,79319.0,79316.0,0.0306]
[1731229906919,0.31038471,79320.0,79316.0,0.0306]
[1731229907119,0.1032,79319.0,79316.0,0.0306]
[1731229907517,0.12219344,79317.0,79316.0,0.0306]
[1731229914319,0.12219344,79317.0,79315.0,0.05057215]
[1731229916024,0.15499344,79317.0,79315.0,0.05057215]
[1731229916622,0.0561785,79316.0,79315.0,0.05057215]
[1731229916919,0.0743905,79317.0,79315.0,0.05057215]
[1731229917120,0.05629716,79316.0,79315.0,0.05057215]
[1731229917521,0.0743905,79317.0,79315.0,0.05057215]
[1731229917718,0.37824,79316.0,79301.0,0.0304]
[1731229917921,0.48299344,79302.0,79301.0,0.0304]
[1731229918625,0.58623344,79302.0,79301.0,0.0304]
[1731229918823,0.58637377,79302.0,79301.0,0.0304]
[1731229919119,0.58637377,79302.0,79300.0,0.45891]
[1731229919323,0.58637377,79302.0,79300.0,0.45727]
[1731229919523,0.48313377,79302.0,79300.0,0.45727]
[1731229919718,0.10352,79301.0,79300.0,0.45727]
[1731229921023,0.15896478,79301.0,79300.0,0.45727]
[1731229921629,0.15897542,79301.0,79300.0,0.45727]
[1731229922532,0.10352,79301.0,79300.0,0.45727]
[1731229923324,0.60403344,79301.0,79300.0,0.45727]
[1731229923524,0.64602686,79301.0,79300.0,0.45727]
[1731229924022,0.52383342,79301.0,79286.0,0.031]
[1731229924230,0.12219344,79287.0,79286.0,0.031]
[1731229924526,0.22571344,79287.0,79286.0,0.031]
[1731229928231,0.22571344,79287.0,79286.0,0.08145026]
[1731229929430,0.10352,79287.0,79286.0,0.08145026]
[1731229929641,0.3608,79294.0,79286.0,0.08145026]
[1731229929825,0.46432,79294.0,79286.0,0.08145026]
[1731229930333,0.46432,79294.0,79286.0,0.12157725]
[1731229931536,0.10352,79299.0,79290.0,0.3608]
[1731229931836,0.05554737,79298.0,79290.0,0.3608]
[1731229932033,0.05554737,79297.0,79290.0,0.3608]
[1731229932330,0.10352,79299.0,79290.0,0.3608]
[1731229932331,0.05554737,79296.0,79290.0,0.3608]
[1731229932537,0.10352,79299.0,79290.0,0.3608]
[1731229933028,0.10352,79299.0,79286.0,0.12157725]
[1731229933438,0.12219344,79295.0,79286.0,0.12157725]
[1731229934323,0.10352,79299.0,79286.0,0.12157725]
[1731229934524,0.3608,79301.0,79289.0,0.12219344]
[1731229934840,0.10352,79300.0,79290.0,0.3608]
[1731229935029,0.3608,79301.0,79290.0,0.3608]
[1731229937039,0.00014033,79302.0,79298.0,0.3608]
[1731229937231,0.12219344,79316.0,79298.0,0.3608]
[1731229937755,0.16287113,79316.0,79298.0,0.3608]
[1731229940731,0.16287113,79316.0,79299.0,0.0324]
[1731229941132,0.16287113,79316.0,79300.0,0.0658]
[1731229941543,0.12219344,79316.0,79300.0,0.0658]
[1731229943336,0.10352,79319.0,79302.0,0.12219344]
[1731229943941,0.10352,79319.0,79305.0,0.3608]
[1731229952645,0.3608,79316.0,79305.0,0.3608]
[1731229953841,0.48299344,79316.0,79305.0,0.3608]
[1731229957353,0.05679939,79315.0,79305.0,0.3608]
[1731229957651,0.48299344,79316.0,79305.0,0.3608]
[1731229961551,0.12219344,79310.0,79300.0,0.10732847]
[1731229962954,0.3608,79308.0,79300.0,0.10732847]
[1731229964457,0.12219344,79310.0,79300.0,0.10732847]
[1731229967554,0.05657575,79309.0,79300.0,0.10732847]
[1731229967760,0.12219344,79310.0,79300.0,0.10732847]
[1731229967761,0.05657575,79308.0,79300.0,0.10732847]
[1731229968058,0.12219344,79310.0,79300.0,0.10732847]
[1731229968260,0.05654331,79309.0,79300.0,0.10732847]
[1731229968462,0.12219344,79310.0,79300.0,0.10732847]
[1731229968754,0.05654381,79309.0,79300.0,0.10732847]
[1731229968961,0.12219344,79310.0,79300.0,0.10732847]
[1731229969160,0.05653993,79309.0,79300.0,0.10732847]
[1731229969347,0.12219344,79310.0,79300.0,0.10732847]
[1731229969553,0.05653938,79309.0,79300.0,0.10732847]
[1731229969753,0.12219344,79310.0,79300.0,0.10732847]
[1731229969969,0.05657392,79309.0,79300.0,0.10732847]
[1731229970159,0.05657392,79308.0,79300.0,0.10732847]
[1731229970360,0.05657392,79307.0,79300.0,0.10732847]
[1731229970561,0.12219344,79310.0,79300.0,0.10732847]
[1731229970759,0.05657657,79309.0,79300.0,0.10732847]
[1731229971065,0.05657657,79308.0,79300.0,0.10732847]
[1731229971371,0.05657657,79307.0,79300.0,0.10732847]
[1731229971564,0.05657657,79306.0,79300.0,0.10732847]
[1731229971762,0.05657657,79305.0,79300.0,0.10732847]
[1731229971962,0.05657657,79304.0,79300.0,0.10732847]
[1731229972162,0.05657657,79303.0,79300.0,0.10732847]
[1731229972361,0.12219344,79310.0,79300.0,0.10732847]
[1731229972662,0.3608,79308.0,79300.0,0.10732847]
[1731229972871,0.12077726,79307.0,79300.0,0.10732847]
[1731229973168,0.12077726,79306.0,79300.0,0.10732847]
[1731229973369,0.0565438,79305.0,79300.0,0.10732847]
[1731229973560,0.05637371,79304.0,79300.0,0.10732847]
[1731229973761,0.05637371,79303.0,79300.0,0.10732847]
[1731229974069,0.3608,79308.0,79300.0,0.10732847]
[1731229974070,0.05637371,79302.0,79300.0,0.10732847]
[1731229974257,0.05637371,79301.0,79300.0,0.10732847]
[1731229975567,0.08017483,79303.0,79300.0,0.10732847]
[1731229980463,0.08017483,79307.0,79300.0,0.1875033]
[1731229981273,0.3608,79308.0,79304.0,0.08017483]
[1731229981663,0.44097483,79308.0,79300.0,0.1875033]
[1731229981863,0.08017483,79308.0,79300.0,0.1875033]
[1731229982459,0.3608,79301.0,79300.0,0.1875033]
[1731229982662,0.3608,79301.0,79300.0,0.10732847]
[1731229983669,0.3608,79301.0,79290.0,0.05044772]
[1731229983670,0.59592737,79301.0,79290.0,0.05044772]
[1731229983875,0.3608,79291.0,79290.0,0.05044772]
[1731229984178,0.05571254,79291.0,79290.0,0.05044772]
[1731229984468,0.08017483,79296.0,79290.0,0.05044772]
[1731229984673,0.056148,79295.0,79290.0,0.05044772]
[1731229984874,0.08017483,79296.0,79290.0,0.05044772]
[1731229985074,0.0561201,79295.0,79290.0,0.05044772]
[1731229985370,0.08017483,79296.0,79290.0,0.05044772]
[1731229985770,0.17945483,79296.0,79290.0,0.05044772]
[1731229990077,0.08017483,79291.0,79290.0,0.05044772]
[1731230004382,0.0321,79292.0,79290.0,0.05044772]
[1731230004685,0.08017483,79291.0,79290.0,0.05044772]
[1731230007693,0.13044467,79291.0,79290.0,0.05044772]
[1731230009395,0.13058483,79291.0,79290.0,0.05044772]
[1731230009781,0.21076189,79291.0,79290.0,0.05044772]
[1731230009988,0.13058706,79291.0,79290.0,0.05044772]
[1731230011785,0.49138706,79291.0,79290.0,0.05044772]
[1731230012183,0.49139247,79291.0,79290.0,0.05044772]
[1731230012492,0.44097483,79291.0,79290.0,0.05044772]
[1731230017298,0.08017483,79291.0,79290.0,0.05044772]
[1731230017627,0.44097483,79291.0,79290.0,0.05044772]
[1731230018603,0.08017483,79291.0,79290.0,0.05044772]
[1731230018818,0.44097483,79291.0,79290.0,0.05044772]
[1731230019596,0.52114966,79291.0,79290.0,0.05044772]
[1731230020298,0.44097483,79291.0,79290.0,0.05044772]
[1731230023895,0.49135064,79291.0,79290.0,0.05044772]
[1731230027008,0.3608,79291.0,79290.0,0.05044772]
[1731230027199,0.44097483,79291.0,79290.0,0.05044772]
[1731230028196,0.3608,79291.0,79290.0,0.05044772]
[1731230028397,0.44097483,79291.0,79290.0,0.10089544]
[1731230028704,0.3608,79291.0,79290.0,0.10089544]
[1731230028900,0.44097483,79291.0,79290.0,0.10089544]
[1731230033408,0.39107483,79291.0,79290.0,0.10089544]
[1731230037602,0.08017483,79291.0,79290.0,0.10089544]
[1731230038217,0.3608,79295.0,79290.0,0.10089544]
[1731230038508,0.3608,79295.0,79292.0,0.08017483]
[1731230040814,0.3608,79295.0,79290.0,0.10089544]
[1731230042318,0.3608,79295.0,79291.0,0.08017483]
[1731230042508,0.44097483,79295.0,79290.0,0.10089544]
[1731230046310,0.08017483,79291.0,79290.0,0.10089544]
[1731230047014,0.3608,79295.0,79290.0,0.10089544]
[1731230047213,0.08017483,79296.0,79290.0,0.10089544]
[1731230048712,0.3608,79302.0,79292.0,0.08017483]
[1731230049311,0.09924,79302.0,79296.0,0.08017483]
[1731230050215,0.08017483,79306.0,79296.0,0.08017483]
[1731230051522,0.08017483,79306.0,79294.0,0.3608]
[1731230051523,0.08017483,79298.0,79294.0,0.3608]
[1731230055931,0.08017483,79298.0,79290.0,0.10089544]
[1731230056227,0.08017483,79298.0,79290.0,0.13855454]
[1731230057931,0.08017483,79298.0,79293.0,0.0376591]
[1731230058225,0.08017483,79298.0,79290.0,0.10089544]
[1731230062232,0.05098602,79297.0,79290.0,0.10089544]
[1731230062426,0.05098602,79296.0,79290.0,0.10089544]
[1731230062632,0.05098602,79295.0,79290.0,0.10089544]
[1731230062834,0.05098602,79294.0,79290.0,0.10089544]
[1731230063142,0.08017483,79298.0,79290.0,0.10089544]
[1731230063432,0.08017483,79293.0,79290.0,0.10089544]
[1731230073839,0.0992,79292.0,79290.0,0.10089544]
[1731230075737,0.08017483,79291.0,79290.0,0.10089544]
[1731230079637,0.17937483,79291.0,79290.0,0.10089544]
[1731230084039,0.08017483,79291.0,79290.0,0.10089544]
[1731230084248,0.17937483,79291.0,79290.0,0.10089544]
[1731230084444,0.08017483,79291.0,79290.0,0.10089544]
[1731230086648,0.17937483,79291.0,79290.0,0.10089544]
[1731230086838,0.0992,79291.0,79290.0,0.10089544]
[1731230087042,0.17937483,79291.0,79290.0,0.10089544]
[1731230088445,0.0992,79291.0,79290.0,0.10089544]
[1731230088649,0.17937483,79291.0,79290.0,0.10089544]
[1731230089553,0.17937483,79291.0,79290.0,0.15134316]
[1731230091047,0.38603813,79294.0,79290.0,0.15134316]
[1731230091254,0.08017483,79291.0,79290.0,0.15134316]
[1731230094159,0.17937483,79291.0,79290.0,0.15134316]
[1731230095258,0.22924291,79291.0,79290.0,0.15134316]
[1731230095648,0.22924291,79291.0,79290.0,0.20179088]
[1731230096655,0.13004291,79291.0,79290.0,0.20179088]
[1731230096854,0.22924291,79291.0,79290.0,0.20179088]
[1731230102361,0.14906808,79291.0,79290.0,0.20179088]
[1731230102555,0.04986808,79291.0,79290.0,0.20179088]
[1731230102956,0.09916,79292.0,79290.0,0.20179088]
[1731230103165,0.3608,79294.0,79290.0,0.20179088]
[1731230103360,0.3608,79294.0,79291.0,0.08017483]
[1731230103658,0.45996,79301.0,79291.0,0.11207483]
[1731230104258,0.08017483,79298.0,79291.0,0.11207483]
[1731230105652,0.08017483,79298.0,79291.0,0.0319]
[1731230105866,0.08017483,79294.0,79291.0,0.0319]
[1731230110756,0.45996,79301.0,79291.0,0.0319]
[1731230110961,0.08017483,79297.0,79291.0,0.0319]
[1731230111368,0.05040207,79296.0,79291.0,0.0319]
[1731230111666,0.08017483,79297.0,79291.0,0.0319]
[1731230114065,0.45996,79301.0,79295.0,0.08017483]
[1731230114365,0.09912,79310.0,79299.0,0.08017483]
[1731230114565,0.08017483,79305.0,79299.0,0.08017483]
[1731230114868,0.14020403,79310.0,79299.0,0.08017483]
[1731230115167,0.08017483,79303.0,79299.0,0.08017483]
[1731230116565,0.08017483,79303.0,79296.0,0.0307]
[1731230116566,0.08017483,79317.0,79301.0,0.3608]
[1731230116769,0.05080219,79310.0,79301.0,0.3608]
[1731230116962,0.13097702,79309.0,79304.0,0.08017483]
[1731230117166,0.05080219,79308.0,79304.0,0.08017483]
[1731230118069,0.05080219,79307.0,79304.0,0.08017483]
[1731230118259,0.44097483,79313.0,79304.0,0.08017483]
[1731230121669,0.08017483,79309.0,79304.0,0.08017483]
[1731230122778,0.08017483,79309.0,79304.0,0.12143124]
[1731230128305,0.14078577,79316.0,79304.0,0.04125641]
[1731230128306,0.08017483,79305.0,79304.0,0.04125641]
[1731230128493,0.08017483,79305.0,79303.0,0.0308]
[1731230128902,0.08017483,79305.0,79303.0,0.04123811]
[1731230129100,0.08017483,79305.0,79302.0,0.0314]
[1731230130000,0.08017483,79305.0,79302.0,0.07231023]
[1731230130896,0.08017483,79305.0,79301.0,0.3608]
[1731230131099,0.08017483,79305.0,79293.0,0.0311]
[1731230131298,0.08017483,79297.0,79293.0,0.07161269]
[1731230131709,0.08017483,79297.0,79293.0,0.04051269]
[1731230131907,0.08017483,79297.0,79287.0,0.0323]
[1731230132104,0.08017483,79297.0,79290.0,0.24331178]